bitfinex/quotes_BTCUSD_20260110
["timestamp","ask_amount","ask_price","bid_price","bid_amount"]
[1768085125069,0.04793044,90579.0,90569.0,0.0110413]
[1768085125274,0.03,90576.0,90567.0,0.01104154]
[1768085125608,0.03,90576.0,90567.0,0.066249]
[1768085125912,0.03,90576.0,90569.0,0.0110413]
[1768085126271,0.03,90576.0,90567.0,0.066249]
[1768085126811,0.03,90576.0,90568.0,0.01104142]
[1768085128698,0.04793044,90575.0,90568.0,0.01104142]
[1768085128903,0.05212,90574.0,90568.0,0.01104142]
[1768085129141,0.05212,90574.0,90566.0,0.06639978]
[1768085129142,0.03,90572.0,90566.0,0.0001498]
[1768085129357,0.03,90568.0,90566.0,0.0001498]
[1768085129680,0.07793044,90568.0,90566.0,0.0001498]
[1768085129839,0.07793044,90567.0,90566.0,0.0001498]
[1768085130032,0.13313818,90567.0,90566.0,0.0001498]
[1768085130256,0.07793044,90555.0,90553.0,0.01104325]
[1768085130468,0.02169092,90555.0,90552.0,0.06626003]
[1768085130671,0.02212,90559.0,90539.0,0.01134236]
[1768085130672,0.04793044,90558.0,90549.0,0.01104374]
[1768085130873,0.000999,90552.0,90549.0,0.06626217]
[1768085131075,0.03,90551.0,90548.0,0.01119366]
[1768085131416,0.04841376,90552.0,90548.0,0.0001498]
[1768085131417,0.04793044,90552.0,90548.0,0.0001498]
[1768085131535,0.04784043,90552.0,90548.0,0.01119366]
[1768085131731,0.04784043,90552.0,90549.0,0.01104374]
[1768085131944,0.04784043,90552.0,90548.0,0.01104386]
[1768085132183,0.04784043,90552.0,90549.0,0.000338]
[1768085132784,0.04784043,90552.0,90546.0,0.01104411]
[1768085132992,0.04784043,90552.0,90548.0,0.01104386]
[1768085133193,0.07807544,90548.0,90547.0,0.01104398]
[1768085133396,0.07793044,90548.0,90547.0,0.01104398]
[1768085134589,0.03,90548.0,90547.0,0.01104398]
[1768085134782,0.04978147,90556.0,90547.0,0.01104398]
[1768085135100,0.02212,90550.0,90547.0,0.01104398]
[1768085135265,0.02212,90550.0,90546.0,0.01104411]
[1768085135579,0.07181145,90550.0,90547.0,0.01104398]
[1768085135780,0.03,90549.0,90547.0,0.01104398]
[1768085136606,0.03,90549.0,90547.0,0.06626389]
[1768085137001,0.03,90549.0,90542.0,7.95431999]
[1768085137002,0.03,90549.0,90542.0,8.00954241]
[1768085137427,0.03,90549.0,90543.0,0.01104447]
[1768085137832,0.07181145,90550.0,90543.0,0.01104447]
[1768085138210,0.07172143,90550.0,90543.0,0.01104447]
[1768085139608,0.07172143,90550.0,90542.0,8.020587]
[1768085139792,0.07172143,90550.0,90543.0,0.01104447]
[1768085140013,0.07172143,90550.0,90544.0,0.01104435]
[1768085140635,0.07172143,90550.0,90543.0,0.06626684]
[1768085140831,0.07172143,90550.0,90544.0,0.01104435]
[1768085141035,0.07172143,90550.0,90543.0,0.06626684]
[1768085141275,0.07172143,90550.0,90544.0,0.01104435]
[1768085141474,0.07172143,90550.0,90543.0,0.06626684]
[1768085141799,0.07163141,90550.0,90543.0,0.01104447]
[1768085143131,0.07163141,90550.0,90544.0,0.01104435]
[1768085143627,0.07163141,90550.0,90543.0,0.01104447]
[1768085145534,0.07163141,90550.0,90542.0,8.02058756]
[1768085145535,0.07163141,90550.0,90542.0,7.95431999]
[1768085146196,0.04978147,90549.0,90542.0,7.95431999]
[1768085146554,0.04969144,90549.0,90542.0,7.95431999]
[1768085147209,0.07978147,90543.0,90542.0,7.95431999]
[1768085147416,0.07978147,90543.0,90542.0,7.95426499]
[1768085147417,0.04969144,90543.0,90542.0,7.95426499]
[1768085148630,0.04960141,90543.0,90542.0,7.95316669]
[1768085148827,0.04951138,90543.0,90542.0,7.95191149]
[1768085149034,0.04978147,90543.0,90542.0,7.94781493]
[1768085149231,0.07978147,90543.0,90542.0,7.94781493]
[1768085149656,0.07978147,90543.0,90542.0,7.94624416]
[1768085149815,0.13500385,90543.0,90542.0,7.94624416]
[1768085150226,0.13500385,90543.0,90542.0,7.94498896]
[1768085150446,0.13500385,90543.0,90542.0,7.94373376]
[1768085150682,0.07978147,90543.0,90542.0,7.94216476]
[1768085150885,0.13500385,90543.0,90542.0,7.94090956]
[1768085151082,0.13500385,90543.0,90542.0,7.93965436]
[1768085151297,0.13500385,90543.0,90542.0,7.93824226]
[1768085151499,0.13500385,90543.0,90542.0,7.93683016]
[1768085151745,0.13500385,90543.0,90542.0,7.93557496]
[1768085151947,0.13500385,90543.0,90542.0,7.93431976]
[1768085152096,0.13500385,90543.0,90542.0,7.93306456]
[1768085152298,0.20104747,90543.0,90542.0,7.92925377]
[1768085152498,0.20104747,90543.0,90542.0,7.92744161]
[1768085152701,0.20104747,90543.0,90542.0,6.63743738]
[1768085152884,0.20104747,90543.0,90542.0,6.13989825]
[1768085153096,0.20104747,90543.0,90542.0,6.13859822]
[1768085153301,0.20104747,90543.0,90542.0,6.13734302]
[1768085153661,0.20104747,90543.0,90542.0,6.13530332]
[1768085153788,0.20104747,90543.0,90542.0,6.13404812]
[1768085153988,0.20104747,90543.0,90542.0,6.13279292]
[1768085154183,0.20104747,90543.0,90542.0,6.13153772]
[1768085154393,0.13500385,90543.0,90542.0,6.13028252]
[1768085154595,0.13500385,90543.0,90542.0,6.12887042]
[1768085154800,0.13500385,90543.0,90542.0,6.12761522]
[1768085155155,0.13500385,90543.0,90542.0,6.12573242]
[1768085155333,0.13500385,90543.0,90542.0,6.12432032]
[1768085155537,0.13500385,90543.0,90542.0,6.12306512]
[1768085155716,0.13500385,90543.0,90542.0,6.12180992]
[1768085155913,0.13500385,90543.0,90542.0,6.12055472]
[1768085156134,0.13500385,90543.0,90542.0,6.11929952]
[1768085156311,0.13500385,90543.0,90542.0,6.11788742]
[1768085156514,0.13500385,90543.0,90542.0,6.11663222]
[1768085156733,0.13500385,90543.0,90542.0,6.11537702]
[1768085156954,0.13500385,90543.0,90542.0,6.11412182]
[1768085157155,0.13500385,90543.0,90542.0,6.11270972]
[1768085157457,0.13500385,90543.0,90542.0,6.11082692]
[1768085157656,0.13500385,90543.0,90542.0,6.10957172]
[1768085157859,0.13500385,90543.0,90542.0,6.10831652]
[1768085158034,0.13500385,90543.0,90542.0,6.10690442]
[1768085158235,0.13500385,90543.0,90542.0,6.10564922]
[1768085158436,0.13500385,90543.0,90542.0,6.10439402]
[1768085158639,0.13500385,90543.0,90542.0,5.87028143]
[1768085158845,0.08522238,90543.0,90542.0,5.39785517]
[1768085159023,0.08522238,90543.0,90542.0,5.20891787]
[1768085159362,0.10734238,90543.0,90542.0,4.64398877]
[1768085159563,0.10734238,90543.0,90542.0,4.64273357]
[1768085159765,0.15358168,90543.0,90542.0,4.60507477]
[1768085159922,0.15358168,90543.0,90542.0,4.60366267]
[1768085160136,0.15358168,90543.0,90542.0,4.60240747]
[1768085160361,0.15358168,90543.0,90542.0,4.60099537]
[1768085160534,0.15358168,90543.0,90542.0,4.59605628]
[1768085161546,0.15358168,90543.0,90542.0,4.59542868]
[1768085161750,0.15358168,90543.0,90542.0,4.54999508]
[1768085161934,0.15358168,90543.0,90542.0,4.54873988]
[1768085162134,0.15358168,90543.0,90542.0,4.54748468]
[1768085162356,0.15358168,90543.0,90542.0,4.54607258]
[1768085162558,0.15358168,90543.0,90542.0,4.54481738]
[1768085162761,0.15358168,90543.0,90542.0,4.4726683]
[1768085163093,0.15358168,90543.0,90542.0,4.40670338]
[1768085163303,0.15358168,90543.0,90542.0,4.35724521]
[1768085163445,0.15358168,90543.0,90542.0,4.313299]
[1768085163638,0.15358168,90543.0,90542.0,4.23066843]
[1768085163857,0.15358168,90543.0,90542.0,4.18666843]
[1768085164075,0.22858027,90543.0,90542.0,4.14266843]
[1768085164278,0.22858027,90543.0,90542.0,4.09866843]
[1768085164479,0.22858027,90543.0,90542.0,3.17377175]
[1768085164681,0.22858027,90543.0,90542.0,3.13506172]
[1768085165176,0.05212,90543.0,90542.0,3.13506172]
[1768085167915,0.30430226,90552.0,90543.0,0.000999]
[1768085168119,0.0442,90545.0,90542.0,3.13506172]
[1768085168318,0.02212,90544.0,90542.0,3.13506172]
[1768085169396,0.02212,90544.0,90542.0,3.18462851]
[1768085170271,0.02212,90544.0,90542.0,3.13506172]
[1768085171698,0.05212,90543.0,90542.0,3.13506172]
[1768085171838,0.10200648,90543.0,90542.0,3.13506172]
[1768085172058,0.10200648,90543.0,90524.0,0.06061358]
[1768085172059,0.10200648,90543.0,90502.0,0.01104947]
[1768085172060,0.60074471,90509.0,90502.0,0.01104947]
[1768085172253,0.51796302,90508.0,90503.0,0.00022309]
[1768085172452,0.02212,90509.0,90503.0,0.00022309]
[1768085172453,0.02212,90509.0,90505.0,0.04956679]
[1768085172684,0.467652,90508.0,90505.0,0.04956679]
[1768085172879,0.46745086,90508.0,90505.0,0.04956679]
[1768085173042,0.46698239,90508.0,90505.0,0.04956679]
[1768085173299,0.46667081,90508.0,90504.0,0.04956679]
[1768085176034,0.46667081,90508.0,90503.0,6.619e-05]
[1768085176233,0.45046651,90508.0,90503.0,6.619e-05]
[1768085176434,0.45046651,90508.0,90507.0,0.05022528]
[1768085176657,0.42247796,90508.0,90507.0,0.05022528]
[1768085177725,0.38545969,90508.0,90507.0,0.05022528]
[1768085178543,0.38545969,90508.0,90507.0,0.00065849]
[1768085178764,0.38514811,90508.0,90507.0,0.05022528]
[1768085179694,0.03,90502.0,90501.0,0.06629744]
[1768085179889,0.33485664,90503.0,90502.0,0.03086642]
[1768085180106,0.33454504,90503.0,90502.0,0.03086642]
[1768085180228,0.33454504,90503.0,90502.0,0.08611381]
[1768085180427,0.33454504,90503.0,90502.0,0.08676872]
[1768085181043,0.29003838,90503.0,90502.0,0.0559023]
[1768085181258,0.18855921,90503.0,90502.0,0.05676872]
[1768085182175,0.18855921,90503.0,90502.0,0.00152133]
[1768085185410,0.18855921,90503.0,90502.0,0.05676872]
[1768085185590,0.18855921,90503.0,90502.0,0.00065491]
[1768085186020,0.18827889,90503.0,90502.0,0.00152133]
[1768085186420,0.18827889,90503.0,90502.0,0.05676872]
[1768085186619,0.18827889,90503.0,90502.0,0.00152133]
[1768085187326,0.18827889,90503.0,90502.0,0.05676872]
[1768085187646,0.18827889,90503.0,90502.0,0.00152133]
[1768085188483,0.18827889,90503.0,90502.0,0.00065491]
[1768085189174,0.18827889,90503.0,90502.0,0.0559023]
[1768085189521,0.18827889,90503.0,90502.0,0.00065491]
[1768085191701,0.18827889,90503.0,90502.0,0.0559023]
[1768085192573,0.18827889,90503.0,90502.0,0.00065491]
[1768085194620,0.18827889,90503.0,90502.0,0.0559023]
[1768085201127,0.18827889,90503.0,90502.0,0.05524739]
[1768085204540,0.23403981,90503.0,90502.0,0.05524739]
[1768085204986,0.02212,90509.0,90501.0,0.05535344]
[1768085204987,0.03,90505.0,90504.0,0.06629517]
[1768085205964,0.07576092,90505.0,90504.0,0.06629517]
[1768085212627,0.03,90505.0,90504.0,0.0662954]
[1768085213790,0.03,90508.0,90506.0,0.05524492]
[1768085214345,0.03,90508.0,90505.0,0.06629429]
[1768085215224,0.03,90508.0,90506.0,0.05524457]
[1768085215450,0.03,90508.0,90507.0,0.05524434]
[1768085215649,0.03,90508.0,90507.0,0.05424534]
[1768085216687,0.07763147,90508.0,90507.0,0.05424534]
[1768085217087,0.07763147,90508.0,90507.0,0.05524434]
[1768085218943,0.07763147,90507.0,90506.0,0.05524457]
[1768085219143,0.03,90507.0,90506.0,0.05524457]
[1768085219646,0.03,90507.0,90506.0,0.05524495]
[1768085221009,0.02212,90509.0,90507.0,0.05524434]
[1768085221010,0.03,90508.0,90507.0,0.05524434]
[1768085222573,0.02212,90509.0,90508.0,0.05624273]
[1768085222785,0.021121,90509.0,90508.0,0.05624273]
[1768085222990,0.021121,90509.0,90508.0,0.05524373]
[1768085224689,0.02103098,90509.0,90508.0,0.05524373]
[1768085225479,0.06629186,90509.0,90508.0,0.05524373]
[1768085225683,0.02103098,90509.0,90508.0,0.05524373]
[1768085226985,0.02094095,90509.0,90508.0,0.05524373]
[1768085228210,0.02085093,90509.0,90508.0,0.05524373]
[1768085228413,0.0207609,90509.0,90508.0,0.05524373]
[1768085232070,0.06602178,90509.0,90508.0,0.05524373]
[1768085234797,0.06593175,90509.0,90508.0,0.05524373]
[1768085235186,0.02067087,90509.0,90508.0,0.05524373]
[1768085236224,0.06593175,90509.0,90508.0,0.05524373]
[1768085241554,0.06584172,90509.0,90508.0,0.05524373]
[1768085242725,0.06584172,90509.0,90508.0,0.05424473]
[1768085247917,0.06575169,90509.0,90508.0,0.05424473]
[1768085253142,0.02049081,90509.0,90508.0,0.05424473]
[1768085253424,0.06561102,90509.0,90508.0,0.05424473]
[1768085255311,0.06552099,90509.0,90508.0,0.05424473]
[1768085261651,0.06543096,90509.0,90508.0,0.05424473]
[1768085278574,0.02031075,90509.0,90508.0,0.05424473]
[1768085283681,0.06794901,90509.0,90508.0,0.05424473]
[1768085287637,0.06794901,90509.0,90508.0,0.05524373]
[1768085299973,0.04763826,90508.0,90504.0,0.01104923]
[1768085300183,0.04763826,90508.0,90498.0,0.01104996]
[1768085300391,0.04763826,90508.0,90496.0,9.64e-05]
[1768085300392,0.04763826,90508.0,90499.0,0.01104984]
[1768085300701,0.04763826,90507.0,90500.0,0.01104972]
[1768085300915,0.07763826,90501.0,90498.0,0.01104996]
[1768085301231,0.29338129,90511.0,90496.0,0.05534733]
[1768085301232,0.07763826,90499.0,90496.0,9.64e-05]
[1768085301414,0.03,90497.0,90496.0,9.64e-05]
[1768085301619,0.04763826,90498.0,90496.0,9.64e-05]
[1768085310385,0.07763826,90504.0,90496.0,9.64e-05]
[1768085310589,0.03,90502.0,90496.0,9.64e-05]
[1768085311350,0.07763826,90498.0,90496.0,9.64e-05]
[1768085316401,0.07603866,90497.0,90496.0,9.64e-05]
[1768085320698,0.07603866,90494.0,90493.0,0.06630331]
[1768085320897,0.07603866,90494.0,90493.0,0.01630331]
[1768085321278,0.07603866,90493.0,90492.0,0.06630392]
[1768085324291,0.07603866,90493.0,90492.0,0.0110507]
[1768085325997,0.03,90493.0,90491.0,0.06630475]
[1768085327228,0.03,90499.0,90492.0,0.0110507]
[1768085328319,0.03,90498.0,90492.0,0.0110507]
[1768085329298,0.03,90497.0,90492.0,0.0110507]
[1768085330382,0.03,90496.0,90492.0,0.0110507]
[1768085331435,0.03,90495.0,90492.0,0.0110507]
[1768085331885,0.03,90495.0,90491.0,0.06630475]
[1768085332354,0.06233813,90495.0,90491.0,0.06630475]
[1768085332557,0.06233813,90495.0,90492.0,0.0110507]
[1768085333379,0.10820887,90495.0,90492.0,0.0110507]
[1768085333672,0.06233813,90495.0,90491.0,0.01105082]
[1768085333898,0.06233813,90495.0,90490.0,0.05525467]
[1768085333899,0.04587074,90494.0,90490.0,0.01105094]
[1768085334235,0.08669163,90493.0,90489.0,0.01105106]
[1768085334556,0.04082089,90493.0,90489.0,0.01105106]
[1768085335383,0.04082089,90493.0,90487.0,0.06665822]
[1768085335384,0.04082089,90493.0,90487.0,0.0003504]
[1768085338183,0.04082089,90493.0,90487.0,0.01140171]
[1768085338328,0.04082089,90493.0,90487.0,0.0003504]
[1768085339889,0.04082089,90493.0,90487.0,0.00030539]
[1768085340285,0.04082089,90493.0,90487.0,0.06661302]
[1768085340447,0.03,90492.0,90487.0,0.0113567]
[1768085341083,0.03,90492.0,90487.0,0.00030539]
[1768085341475,0.03,90491.0,90487.0,0.00030539]
[1768085342810,0.03,90495.0,90487.0,0.0113567]
[1768085343524,0.03,90495.0,90487.0,0.00030539]
[1768085343750,0.03,90493.0,90487.0,0.00030539]
[1768085346793,0.03,90493.0,90487.0,0.00014954]
[1768085347181,0.03,90493.0,90485.0,0.0002]
[1768085348879,0.03,90489.0,90485.0,0.0002]
[1768085349083,0.07858825,90487.0,90485.0,0.0002]
[1768085349290,0.03,90487.0,90485.0,0.0002]
[1768085350115,0.03,90491.0,90485.0,0.0002]
[1768085350333,0.04060671,90491.0,90485.0,0.0002]
[1768085350552,0.04060671,90491.0,90485.0,0.00025067]
[1768085353931,0.04060671,90491.0,90485.0,0.01130222]
[1768085354136,0.04060671,90491.0,90485.0,0.00025067]
[1768085354981,0.08919496,90491.0,90485.0,9.481e-05]
[1768085355199,0.07858825,90491.0,90485.0,9.481e-05]
[1768085356367,0.07858825,90491.0,90485.0,0.01114636]
[1768085356549,0.07858825,90491.0,90485.0,9.481e-05]
[1768085356750,0.07858825,90491.0,90485.0,4.98e-05]
[1768085359452,0.07858825,90491.0,90485.0,4.79e-06]
[1768085360601,0.03,90493.0,90485.0,4.79e-06]
[1768085360826,0.03,90491.0,90485.0,4.79e-06]
[1768085365087,0.07858825,90491.0,90485.0,4.79e-06]
[1768085369914,0.03,90491.0,90485.0,4.79e-06]
[1768085384009,0.03,90487.0,90485.0,4.79e-06]
[1768085384922,0.03,90486.0,90485.0,4.79e-06]
[1768085385981,0.03,90491.0,90485.0,4.79e-06]
[1768085386181,0.08075884,90491.0,90485.0,4.79e-06]
[1768085388276,0.14706383,90491.0,90485.0,4.79e-06]
[1768085388479,0.03,90487.0,90485.0,4.79e-06]
[1768085388728,0.07611201,90487.0,90485.0,4.79e-06]
[1768085393142,0.03,90488.0,90485.0,4.79e-06]
[1768085393335,0.12877725,90488.0,90485.0,4.79e-06]
[1768085393929,0.03,90486.0,90485.0,4.79e-06]
[1768085400537,0.03,90489.0,90485.0,4.79e-06]
[1768085400754,0.03,90487.0,90485.0,4.79e-06]
[1768085401494,0.0773516,90487.0,90485.0,4.79e-06]
[1768085401877,0.24930172,90492.0,90485.0,4.79e-06]
[1768085401878,0.09166019,90486.0,90485.0,4.79e-06]
[1768085402084,0.02986843,90509.0,90485.0,4.79e-06]
[1768085402085,0.0222704,90495.0,90487.0,0.000999]
[1768085402269,0.02212,90499.0,90487.0,0.04967565]
[1768085402436,0.0222704,90498.0,90487.0,0.04967565]
[1768085402649,0.03,90493.0,90491.0,0.01105082]
[1768085402994,0.03,90493.0,90491.0,0.06623641]
[1768085403128,0.03,90493.0,90491.0,0.01098265]
[1768085403329,0.00876113,90494.0,90493.0,0.000999]
[1768085403770,0.00876113,90494.0,90491.0,0.01098265]
[1768085403939,0.00876113,90494.0,90491.0,0.01105082]
[1768085404136,0.00876113,90494.0,90491.0,0.11133908]
[1768085404476,0.03,90493.0,90491.0,0.03802352]
[1768085405465,0.03,90493.0,90491.0,0.02732941]
[1768085405870,0.03,90493.0,90490.0,0.01105094]
[1768085406048,0.03,90493.0,90490.0,0.0663056]
[1768085407291,0.03,90493.0,90490.0,0.01105094]
[1768085407506,0.03,90493.0,90489.0,0.06630635]
[1768085407738,0.03,90493.0,90489.0,0.01105106]
[1768085408354,0.03,90493.0,90489.0,0.06630615]
[1768085408483,0.03,90492.0,90489.0,0.06630615]
[1768085409054,0.03,90492.0,90489.0,0.06630599]
[1768085409191,0.03,90491.0,90489.0,0.01105106]
[1768085409891,0.03,90491.0,90490.0,0.05525472]
[1768085410086,0.03,90491.0,90489.0,0.0663059]
[1768085410694,0.03,90491.0,90490.0,0.05525472]
[1768085411682,0.03,90494.0,90491.0,0.01105082]
[1768085411852,0.03,90493.0,90490.0,0.05854342]
[1768085412084,0.03,90493.0,90490.0,0.06630559]
[1768085412487,0.03,90493.0,90490.0,0.0663053]
[1768085412690,0.03,90492.0,90491.0,0.01105082]
[1768085412897,0.03,90492.0,90491.0,0.06630493]
[1768085413238,0.03,90492.0,90490.0,0.06630532]
[1768085413459,0.03,90492.0,90491.0,0.05525411]
[1768085413672,0.03,90494.0,90491.0,0.01105082]
[1768085414003,0.03,90494.0,90490.0,0.01105094]
[1768085414604,0.03,90494.0,90491.0,0.01105082]
[1768085414977,0.03,90494.0,90490.0,0.01105094]
[1768085419016,0.03,90494.0,90489.0,0.06630627]
[1768085419245,0.03,90494.0,90489.0,0.01105106]
[1768085419399,0.03,90494.0,90490.0,0.01105094]
[1768085419812,0.03,90494.0,90489.0,0.06630636]
[1768085420010,0.03,90494.0,90489.0,0.06630633]
[1768085420212,0.03,90494.0,90489.0,0.01105106]
[1768085420411,0.03,90494.0,90490.0,0.01105094]
[1768085422083,0.03,90494.0,90489.0,0.06630612]
[1768085422480,0.03,90494.0,90490.0,0.01105094]
[1768085424440,0.03,90494.0,90490.0,0.06630561]
[1768085425198,0.03,90494.0,90491.0,0.01105082]
[1768085426324,0.03,90494.0,90490.0,0.01105094]
[1768085426513,0.03,90494.0,90491.0,0.01105082]
[1768085426710,0.03,90494.0,90490.0,0.06630557]
[1768085427008,0.03,90494.0,90491.0,0.01105082]
[1768085427411,0.03631675,90494.0,90491.0,0.01105082]
[1768085427626,0.03,90494.0,90490.0,0.09966943]
[1768085429309,0.03,90494.0,90490.0,0.06630557]
[1768085429517,0.03,90494.0,90491.0,0.01105082]
[1768085429897,0.03,90494.0,90490.0,0.06630557]
[1768085430093,0.03,90494.0,90490.0,0.01105094]
[1768085430295,0.03,90494.0,90489.0,0.09967012]
[1768085430503,0.03,90494.0,90489.0,0.06630626]
[1768085430913,0.03,90494.0,90488.0,0.06630707]
[1768085431359,0.03,90494.0,90489.0,0.01105106]
[1768085431561,0.03,90494.0,90489.0,0.04441492]
[1768085431973,0.03,90494.0,90490.0,0.03336386]
[1768085432177,0.03,90502.0,90490.0,0.03336386]
[1768085432594,0.03,90496.0,90490.0,0.03336386]
[1768085433775,0.03,90496.0,90489.0,0.01105106]
[1768085434148,0.03,90496.0,90489.0,0.06630615]
[1768085434321,0.03,90496.0,90489.0,0.01105106]
[1768085435367,0.03,90496.0,90488.0,0.06630707]
[1768085435567,0.03,90496.0,90489.0,0.01105106]
[1768085436911,0.03,90496.0,90490.0,0.01105094]
[1768085437511,0.03,90496.0,90489.0,0.06630633]
[1768085437997,0.03,90496.0,90490.0,0.01105094]
[1768085442548,0.03,90496.0,90490.0,0.06630565]
[1768085442747,0.03,90496.0,90490.0,0.01105094]
[1768085442975,0.03,90495.0,90490.0,0.01105094]
[1768085443953,0.03,90495.0,90489.0,0.06630632]
[1768085444180,0.03,90495.0,90490.0,0.01105094]
[1768085444759,0.03,90499.0,90490.0,0.01105094]
[1768085444962,0.03,90499.0,90491.0,0.01105082]
[1768085445165,0.03,90496.0,90491.0,0.01105082]
[1768085445399,0.03,90496.0,90489.0,0.06630608]
[1768085445599,0.03,90496.0,90490.0,0.01105094]
[1768085445939,0.03,90496.0,90490.0,0.06630564]
[1768085446157,0.03,90496.0,90491.0,0.03336386]
[1768085446360,0.03,90496.0,90492.0,0.03336386]
[1768085447197,0.03,90496.0,90489.0,0.01105106]
[1768085447372,0.03,90496.0,90490.0,0.01105094]
[1768085448277,0.03,90496.0,90489.0,0.06630621]
[1768085448673,0.03,90496.0,90490.0,0.01105094]
[1768085448919,0.03,90496.0,90489.0,0.01105106]
[1768085449236,0.03,90496.0,90489.0,0.06630607]
[1768085449530,0.03,90496.0,90490.0,0.01105094]
[1768085449854,0.03,90496.0,90489.0,0.06630607]
[1768085450625,0.03,90496.0,90489.0,0.01105106]
[1768085450865,0.03,90496.0,90489.0,0.06630599]
[1768085451199,0.03,90496.0,90490.0,0.01105094]
[1768085451398,0.03,90496.0,90489.0,0.01105106]
[1768085451720,0.03,90496.0,90490.0,0.01105094]
[1768085452346,0.03,90496.0,90489.0,0.06630614]
[1768085452757,0.03,90496.0,90490.0,0.01105094]
[1768085453291,0.03,90495.0,90490.0,0.01105094]
[1768085455032,0.03,90494.0,90490.0,0.06630532]
[1768085455179,0.03,90494.0,90490.0,0.01105094]
[1768085456010,0.03,90496.0,90490.0,0.01105094]
[1768085457107,0.03,90496.0,90490.0,0.06630558]
[1768085458381,0.03,90496.0,90491.0,0.01105082]
[1768085458768,0.03,90496.0,90490.0,0.01105094]
[1768085458970,0.03,90496.0,90491.0,0.01105082]
[1768085459536,0.03,90496.0,90491.0,0.06630486]
[1768085459716,0.03,90496.0,90491.0,0.01105082]
[1768085460213,0.03,90496.0,90490.0,0.01105094]
[1768085460850,0.03,90496.0,90491.0,0.01105082]
[1768085461015,0.03,90496.0,90489.0,0.06630618]
[1768085461213,0.03,90496.0,90490.0,0.01105094]
[1768085461619,0.07798645,90496.0,90490.0,0.01105094]
[1768085462059,0.07798645,90492.0,90489.0,0.06630618]
[1768085462234,0.07798645,90492.0,90489.0,0.01105106]
[1768085462627,0.03,90492.0,90489.0,0.01105106]
[1768085462833,0.03,90492.0,90489.0,0.06630623]
[1768085463027,0.03,90491.0,90490.0,0.01105094]
[1768085463241,0.03,90491.0,90490.0,0.00965707]
[1768085463835,0.03,90491.0,90489.0,0.066306]
[1768085464023,0.07850551,90496.0,90489.0,0.066306]
[1768085464464,0.03,90494.0,90490.0,0.01105094]
[1768085464645,0.03316751,90497.0,90488.0,0.06630665]
[1768085464646,0.03,90490.0,90488.0,0.06630665]
[1768085466807,0.04850551,90491.0,90488.0,0.06630665]
[1768085467500,0.04850551,90491.0,90488.0,0.06630659]
[1768085468057,0.04819368,90491.0,90488.0,0.06630659]
[1768085471050,0.04819368,90491.0,90489.0,0.05525483]
[1768085476523,0.04819368,90491.0,90489.0,0.05525531]
[1768085477306,0.04819368,90491.0,90488.0,0.06071811]
[1768085478449,0.04819368,90491.0,90489.0,0.05525513]
[1768085479450,0.03,90499.0,90490.0,0.01105094]
[1768085479836,0.03,90499.0,90490.0,0.06630529]
[1768085481129,0.000999,90490.0,90488.0,0.01105118]
[1768085481329,0.04850551,90495.0,90489.0,0.06630638]
[1768085481537,0.03,90492.0,90489.0,0.06630638]
[1768085481876,0.03,90492.0,90489.0,0.0663063]
[1768085482073,0.03,90492.0,90489.0,0.01105106]
[1768085482993,0.03,90492.0,90488.0,0.06630698]
[1768085483238,0.000999,90489.0,90488.0,0.06630698]
[1768085483601,0.03,90492.0,90489.0,0.06630635]
[1768085484435,0.03996191,90492.0,90489.0,0.06630635]
[1768085484776,0.07850551,90490.0,90489.0,0.06630635]
[1768085485751,0.03,90490.0,90489.0,0.06630635]
[1768085486077,0.07850551,90490.0,90489.0,0.06630635]
[1768085488263,0.07850551,90490.0,90488.0,0.06630701]
[1768085489197,0.04850551,90489.0,90488.0,0.06630701]
[1768085489411,0.07850551,90489.0,90488.0,0.01105118]
[1768085489577,0.07850551,90489.0,90488.0,0.06630712]
[1768085494566,0.04751459,90492.0,90488.0,0.06630712]
[1768085494777,0.07751459,90491.0,90487.0,0.01105131]
[1768085495246,0.07751459,90491.0,90486.0,0.03317143]
[1768085495581,0.07751459,90491.0,90487.0,0.01105131]
[1768085497222,0.04720272,90491.0,90487.0,0.01105131]
[1768085497975,0.04720272,90491.0,90487.0,0.06630783]
[1768085498379,0.04720272,90491.0,90487.0,0.01105131]
[1768085499721,0.03,90497.0,90488.0,0.066307]
[1768085499868,0.03,90495.0,90488.0,0.01105118]
[1768085500070,0.07751459,90495.0,90488.0,0.01105118]
[1768085500471,0.07751459,90495.0,90489.0,0.01105106]
[1768085500692,0.07751459,90495.0,90488.0,0.0663071]
[1768085500924,0.03,90493.0,90488.0,0.01105118]
[1768085501103,0.07751459,90493.0,90488.0,0.01105118]
[1768085501726,0.07751459,90493.0,90488.0,0.06630702]
[1768085502331,0.07751459,90493.0,90489.0,0.01105106]
[1768085502950,0.07751459,90490.0,90489.0,0.01105106]
[1768085504429,0.04751459,90489.0,90488.0,0.06630702]
[1768085504650,0.07751459,90489.0,90488.0,0.01105118]
[1768085505292,0.03,90489.0,90488.0,0.01105118]
[1768085506278,0.04734742,90495.0,90488.0,0.01105118]
[1768085506897,0.07751459,90494.0,90488.0,0.01105118]
[1768085507053,0.07751459,90489.0,90488.0,0.01105118]
[1768085508698,0.04751459,90486.0,90485.0,0.02212479]
[1768085508907,0.07751459,90486.0,90485.0,0.02212479]
[1768085510107,0.07751459,90486.0,90485.0,0.02112579]
[1768085512022,0.07751459,90488.0,90485.0,0.02112579]
[1768085512237,0.03,90486.0,90485.0,0.02112579]
[1768085512378,0.07751459,90486.0,90485.0,0.02112579]
[1768085520913,0.03,90488.0,90485.0,0.02112579]
[1768085521040,0.07784951,90488.0,90485.0,0.02112579]
[1768085521250,0.03,90486.0,90485.0,0.02112579]
[1768085521444,0.04784951,90496.0,90485.0,0.02112579]
[1768085521816,0.08102377,90502.0,90485.0,0.05528052]
[1768085521941,0.01104972,90500.0,90486.0,0.03415473]
[1768085522145,0.04104972,90500.0,90486.0,0.04520616]
[1768085522344,0.04104972,90500.0,90486.0,0.10046308]
[1768085522654,0.03,90500.0,90487.0,0.01105131]
[1768085523062,0.03,90498.0,90486.0,0.03415473]
[1768085523256,0.03,90496.0,90486.0,0.03415473]
[1768085524284,0.03,90498.0,90486.0,0.03415473]
[1768085525684,0.06316758,90498.0,90486.0,0.03415473]
[1768085526707,0.07421754,90498.0,90486.0,0.03415473]
[1768085526893,0.12946741,90498.0,90486.0,0.03415473]
[1768085527039,0.12946743,90498.0,90486.0,0.03415473]
[1768085527257,0.07421754,90498.0,90486.0,0.03415473]
[1768085527925,0.03,90496.0,90486.0,0.03415473]
[1768085530986,0.03,90496.0,90487.0,0.03415473]